[Event "11th LCC Super Blitz 2019"]
[Site "London"]
[Date "2019.12.08"]
[Round "2.12"]
[White "Manmay Chopra"]
[Black "Mohnblatt, Nicolas"]
[Result "0-1"]
[ECO "E51"]
[WhiteElo "1354"]
[BlackElo "1689"]
[Annotator "NA"]
[PlyCount "74"]
[EventDate "2019.12.08"]
[EventType "swiss"]
[EventCountry "ENG"]
[SourceTitle "playchess.com"]
[Source "ChessBase"]
[SourceQuality "1"]
[TimeControl "180+2"]

1. d4 {[%emt 0:00:00]} Nf6 {[%emt 0:00:00]} 2. Nf3 {[%emt 0:00:02]} d5 {[%emt 0:00:00]} 3. c4 {[%emt 0:00:04]} e6 {[%emt 0:00:02]} 4. Nc3 {[%emt 0:00:02]} Bb4 {[%emt 0:00:01]} 5. a3 {[%emt 0:00:09]} Bxc3+ {[%emt 0:00:01]} 6. bxc3 {[%emt 0:00:02]} O-O {[%emt 0:00:03]} 7. e3 {[%emt 0:00:03]} Nbd7 {[%emt 0:00:11]} 8. Bd3 {[%emt 0:00:06]} a6 {[%emt 0:00:05]} 9. cxd5 {[%emt 0:00:08]} exd5 {[%emt 0:00:01]} 10. c4 {[%emt 0:00:02]} dxc4 {[%emt 0:00:03]} 11. Bxc4 {[%emt 0:00:01]} b5 {[%emt 0:00:01]} 12. Bd3 {[%emt 0:00:02]} Bb7 {[%emt 0:00:01]} 13. O-O {[%emt 0:00:11]} c5 {[%emt 0:00:02]} 14. Bb2 {[%emt 0:00:13]} c4 {[%emt 0:00:03]} 15. Be2 {[%emt 0:00:01]} Rc8 {[%emt 0:00:02]} 16. Bc3 {[%emt 0:00:01]} Ne4 {[%emt 0:00:07]} 17. Qc2 {[%emt 0:00:07]} Ndf6 {[%emt 0:00:12]} 18. Nd2 {[%emt 0:00:05]} Re8 {[%emt 0:00:28]} 19. Nxe4 {[%emt 0:00:04]} Nxe4 {[%emt 0:00:11]} 20. Bf3 {[%emt 0:00:01]} Qg5 {[%emt 0:00:11]} 21. Be1 {[%emt 0:00:42]} Ba8 {[%emt 0:00:24]} 22. Rc1 {[%emt 0:00:18]} h5 {[%emt 0:00:12]} 23. Qe2 {[%emt 0:00:13]} h4 {[%emt 0:00:07]} 24. Bxe4 {[%emt 0:00:05]} Bxe4 {[%emt 0:00:02]} 25. f4 {[%emt 0:00:01]} Qh6 {[%emt 0:00:15]} 26. Qf2 {[%emt 0:00:04]} Bd3 {[%emt 0:00:09]} 27. Bd2 {[%emt 0:00:29]} Bxf1 {[%emt 0:00:04]} 28. Qxf1 {[%emt 0:00:01]} Qc6 {[%emt 0:00:07]} 29. Qf2 {[%emt 0:00:05]} Qh6 {[%emt 0:00:22]} 30. f5 {[%emt 0:00:17]} h3 {[%emt 0:00:03]} 31. e4 {[%emt 0:00:01]} Qc6 {[%emt 0:00:06]} 32. d5 {[%emt 0:00:02]} Qc5 {[%emt 0:00:01]} 33. Be3 {[%emt 0:00:09]} Qxa3 {[%emt 0:00:02]} 34. gxh3 {[%emt 0:00:02]} Rxe4 {[%emt 0:00:02]} 35. Re1 {[%emt 0:00:09]} Rce8 {[%emt 0:00:03]} 36. Bd2 {[%emt 0:00:06]} Rxe1+ {[%emt 0:00:02]} 37. Bxe1 {[%emt 0:00:01]} Qxh3 {[%emt 0:00:02]} 0-1

[Event "11th LCC Super Blitz 2019"]
[Site "London"]
[Date "2019.12.08"]
[Round "2.13"]
[White "Jackson, Julius"]
[Black "Ball, Charlie J"]
[Result "0-1"]
[ECO "C41"]
[WhiteElo "1584"]
[BlackElo "1249"]
[Annotator "NA"]
[PlyCount "62"]
[EventDate "2019.12.08"]
[EventType "swiss"]
[EventCountry "ENG"]
[SourceTitle "playchess.com"]
[Source "ChessBase"]
[SourceQuality "1"]
[TimeControl "180+2"]

1. e4 {[%emt 0:00:00]} d6 {[%emt 0:00:00]} 2. d4 {[%emt 0:00:02]} Nf6 {[%emt 0:00:00]} 3. Nc3 {[%emt 0:00:01]} Nbd7 {[%emt 0:00:02]} 4. Nf3 {[%emt 0:00:02]} e5 {[%emt 0:00:01]} 5. Bc4 {[%emt 0:00:08]} h6 {[%emt 0:00:02]} 6. Be3 {[%emt 0:00:10]} Be7 {[%emt 0:00:04]} 7. O-O {[%emt 0:00:05]} c6 {[%emt 0:00:05]} 8. Qd2 {[%emt 0:00:06]} Qc7 {[%emt 0:00:02]} 9. Rad1 {[%emt 0:00:05]} Nf8 {[%emt 0:00:09]} 10. Rfe1 {[%emt 0:00:10]} Bg4 {[%emt 0:00:03]} 11. Be2 {[%emt 0:00:12]} g5 {[%emt 0:00:03]} 12. h3 {[%emt 0:00:04]} Bd7 {[%emt 0:00:01]} 13. dxe5 {[%emt 0:00:19]} dxe5 {[%emt 0:00:01]} 14. Bc4 {[%emt 0:00:08]} Ng6 {[%emt 0:00:06]} 15. Qd3 {[%emt 0:00:15]} g4 {[%emt 0:00:06]} 16. hxg4 {[%emt 0:00:04]} Nxg4 {[%emt 0:00:05]} 17. Ne2 {[%emt 0:00:18]} h5 {[%emt 0:00:26]} 18. Bg5 {[%emt 0:00:10]} h4 {[%emt 0:00:11]} 19. Bxe7 {[%emt 0:00:06]} Kxe7 {[%emt 0:00:10]} 20. Ng5 {[%emt 0:00:15]} Raf8 {[%emt 0:00:07]} 21. Bxf7 {[%emt 0:00:04]} Rh5 {[%emt 0:00:05]} 22. Bxg6 {[%emt 0:00:05]} Rxg5 {[%emt 0:00:04]} 23. Bf5 {[%emt 0:00:16]} Bxf5 {[%emt 0:00:06]} 24. exf5 {[%emt 0:00:02]} Rgxf5 {[%emt 0:00:02]} 25. f3 {[%emt 0:00:01]} Nf2 {[%emt 0:00:02]} 26. Kxf2 {[%emt 0:00:05]} h3 {[%emt 0:00:03]} 27. gxh3 {[%emt 0:00:05]} Qb6+ {[%emt 0:00:02]} 28. Qe3 {[%emt 0:00:04]} Rxf3+ {[%emt 0:00:01]} 29. Kg1 {[%emt 0:00:05]} Qxe3+ {[%emt 0:00:04]} 30. Kg2 {[%emt 0:00:06]} Qf2+ {[%emt 0:00:01]} 31. Kh1 {[%emt 0:00:01]} Rxh3# {[%emt 0:00:02]} 0-1

[Event "11th LCC Super Blitz 2019"]
[Site "London"]
[Date "2019.12.08"]
[Round "2.13"]
[White "Fisher, Neal"]
[Black "Tombolis, Christopher"]
[Result "1/2-1/2"]
[ECO "D02"]
[WhiteElo "1522"]
[BlackElo "1655"]
[Annotator "NA"]
[PlyCount "128"]
[EventDate "2019.12.08"]
[EventType "swiss"]
[EventCountry "ENG"]
[SourceTitle "playchess.com"]
[Source "ChessBase"]
[SourceQuality "1"]
[TimeControl "180+2"]

1. d4 {[%emt 0:00:01]} d5 {[%emt 0:00:00]} 2. Bf4 {[%emt 0:00:02]} Nf6 {[%emt 0:00:02]} 3. Nf3 {[%emt 0:00:03]} c5 {[%emt 0:00:00]} 4. e3 {[%emt 0:00:01]} Nc6 {[%emt 0:00:02]} 5. c3 {[%emt 0:00:01]} Qb6 {[%emt 0:00:01]} 6. Qb3 {[%emt 0:00:02]} c4 {[%emt 0:00:01]} 7. Qc2 {[%emt 0:00:02]} Bf5 {[%emt 0:00:01]} 8. Qc1 {[%emt 0:00:05]} e6 {[%emt 0:00:17]} 9. Nbd2 {[%emt 0:00:03]} Be7 {[%emt 0:00:12]} 10. Be2 {[%emt 0:00:06]} O-O {[%emt 0:00:02]} 11. Nh4 {[%emt 0:00:14]} Bg6 {[%emt 0:00:09]} 12. Nxg6 {[%emt 0:00:02]} hxg6 {[%emt 0:00:01]} 13. h4 {[%emt 0:00:01]} Nh5 {[%emt 0:00:10]} 14. Bxh5 {[%emt 0:00:06]} gxh5 {[%emt 0:00:01]} 15. Rh3 {[%emt 0:00:18]} Qd8 {[%emt 0:00:08]} 16. Qd1 {[%emt 0:00:05]} g6 {[%emt 0:00:10]} 17. Nf3 {[%emt 0:00:04]} Bf6 {[%emt 0:00:25]} 18. Bg5 {[%emt 0:00:16]} Bxg5 {[%emt 0:00:07]} 19. Nxg5 {[%emt 0:00:03]} e5 {[%emt 0:00:45]} 20. g4 {[%emt 0:00:02]} hxg4 {[%emt 0:00:06]} 21. Qxg4 {[%emt 0:00:03]} Qc8 {[%emt 0:00:02]} 22. Qxc8 {[%emt 0:00:23]} Raxc8 {[%emt 0:00:01]} 23. h5 {[%emt 0:00:02]} gxh5 {[%emt 0:00:26]} 24. Rxh5 {[%emt 0:00:01]} f6 {[%emt 0:00:01]} 25. Ne6 {[%emt 0:00:09]} Rfe8 {[%emt 0:00:01]} 26. Nc5 {[%emt 0:00:03]} b6 {[%emt 0:00:01]} 27. Na4 {[%emt 0:00:14]} exd4 {[%emt 0:00:07]} 28. O-O-O {[%emt 0:00:06]} Ne5 {[%emt 0:00:15]} 29. Rg1+ {[%emt 0:00:01]} Kf7 {[%emt 0:00:04]} 30. cxd4 {[%emt 0:00:06]} Nd3+ {[%emt 0:00:10]} 31. Kd2 {[%emt 0:00:10]} Rg8 {[%emt 0:00:01]} 32. Rh7+ {[%emt 0:00:08]} Ke6 {[%emt 0:00:00]} 33. Rxg8 {[%emt 0:00:02]} Rxg8 {[%emt 0:00:00]} 34. Rxa7 {[%emt 0:00:03]} Rg2 {[%emt 0:00:03]} 35. Nc3 {[%emt 0:00:08]} Rxf2+ {[%emt 0:00:02]} 36. Ne2 {[%emt 0:00:02]} Nxb2 {[%emt 0:00:06]} 37. Ra6 {[%emt 0:00:06]} c3+ {[%emt 0:00:05]} 38. Kxc3 {[%emt 0:00:04]} Rxe2 {[%emt 0:00:01]} 39. Rxb6+ {[%emt 0:00:02]} Kf5 {[%emt 0:00:02]} 40. Rxb2 {[%emt 0:00:03]} Rxe3+ {[%emt 0:00:02]} 41. Kb4 {[%emt 0:00:04]} Rd3 {[%emt 0:00:04]} 42. Kc5 {[%emt 0:00:01]} Ke4 {[%emt 0:00:07]} 43. Re2+ {[%emt 0:00:03]} Kf3 {[%emt 0:00:01]} 44. Re6 {[%emt 0:00:03]} Ra3 {[%emt 0:00:00]} 45. Rxf6+ {[%emt 0:00:02]} Ke4 {[%emt 0:00:01]} 46. Re6+ {[%emt 0:00:07]} Kf5 {[%emt 0:00:01]} 47. Re5+ {[%emt 0:00:01]} Kf6 {[%emt 0:00:01]} 48. Rxd5 {[%emt 0:00:01]} Rxa2 {[%emt 0:00:02]} 49. Kc4 {[%emt 0:00:05]} Ke6 {[%emt 0:00:01]} 50. Rb5 {[%emt 0:00:02]} Rc2+ {[%emt 0:00:02]} 51. Kd3 {[%emt 0:00:01]} Rc7 {[%emt 0:00:01]} 52. Re5+ {[%emt 0:00:06]} Kd6 {[%emt 0:00:00]} 53. Rh5 {[%emt 0:00:02]} Rg7 {[%emt 0:00:03]} 54. Rh6+ {[%emt 0:00:01]} Kd5 {[%emt 0:00:00]} 55. Rh5+ {[%emt 0:00:01]} Kd6 {[%emt 0:00:01]} 56. Kc4 {[%emt 0:00:03]} Rc7+ {[%emt 0:00:01]} 57. Kd3 {[%emt 0:00:01]} Rg7 {[%emt 0:00:00]} 58. Rh6+ {[%emt 0:00:02]} Kd5 {[%emt 0:00:01]} 59. Rh5+ {[%emt 0:00:01]} Kd6 60. Rh6+ {[%emt 0:00:05]} Kd5 {[%emt 0:00:00]} 61. Rh5+ {[%emt 0:00:04]} Kd6 {[%emt 0:00:01]} 62. Ke4 {[%emt 0:00:06]} Rg4+ {[%emt 0:00:01]} 63. Kd3 {[%emt 0:00:03]} Rg7 {[%emt 0:00:01]} 64. Rh6+ {[%emt 0:00:02]} Kd5 {[%emt 0:00:01]} 1/2-1/2

[Event "11th LCC Super Blitz 2019"]
[Site "London"]
[Date "2019.12.08"]
[Round "2.13"]
[White "Essis, Essoh Jean Mathieu C"]
[Black "Brass, Ezra"]
[Result "0-1"]
[ECO "A45"]
[WhiteElo "1438"]
[BlackElo "1628"]
[Annotator "NA"]
[PlyCount "26"]
[EventDate "2019.12.08"]
[EventType "swiss"]
[EventCountry "ENG"]
[SourceTitle "playchess.com"]
[Source "ChessBase"]
[SourceQuality "1"]
[TimeControl "180+2"]

1. d4 {[%emt 0:00:03]} Nf6 {[%emt 0:00:00]} 2. Bf4 {[%emt 0:00:03]} d6 {[%emt 0:00:03]} 3. Nd2 {[%emt 0:00:04]} Nbd7 {[%emt 0:00:13]} 4. Ngf3 {[%emt 0:00:01]} e6 {[%emt 0:00:03]} 5. e3 {[%emt 0:00:01]} Be7 {[%emt 0:00:02]} 6. c3 {[%emt 0:00:02]} b6 {[%emt 0:00:03]} 7. Bb5 {[%emt 0:00:03]} Bb7 {[%emt 0:00:04]} 8. Qa4 {[%emt 0:00:07]} a6 {[%emt 0:00:03]} 9. Bc6 {[%emt 0:00:01]} Bxc6 {[%emt 0:00:10]} 10. Qxc6 {[%emt 0:00:02]} O-O {[%emt 0:00:03]} 11. O-O {[%emt 0:00:14]} Ra7 {[%emt 0:00:12]} 12. a4 {[%emt 0:00:10]} Qa8 {[%emt 0:00:05]} 13. Qxd7 {[%emt 0:00:07]} Nxd7 {[%emt 0:00:00]} 0-1

[Event "11th LCC Super Blitz 2019"]
[Site "London"]
[Date "2019.12.08"]
[Round "2.15"]
[White "Pham, Catherine"]
[Black "Toh, Q Kane"]
[Result "0-1"]
[ECO "B13"]
[WhiteElo "1280"]
[BlackElo "1606"]
[Annotator "NA"]
[PlyCount "56"]
[EventDate "2019.12.08"]
[EventType "swiss"]
[EventCountry "ENG"]
[SourceTitle "playchess.com"]
[Source "ChessBase"]
[SourceQuality "1"]
[TimeControl "180+2"]

1. e4 {[%emt 0:00:00]} c6 {[%emt 0:00:00]} 2. Nc3 {[%emt 0:00:04]} d5 {[%emt 0:00:00]} 3. exd5 {[%emt 0:00:02]} cxd5 {[%emt 0:00:01]} 4. Nf3 {[%emt 0:00:04]} Nc6 {[%emt 0:00:01]} 5. d4 {[%emt 0:00:03]} Bg4 {[%emt 0:00:01]} 6. Be3 {[%emt 0:00:04]} e6 {[%emt 0:00:02]} 7. h3 {[%emt 0:00:03]} Bh5 {[%emt 0:00:02]} 8. Be2 {[%emt 0:00:05]} Nf6 {[%emt 0:00:02]} 9. O-O {[%emt 0:00:03]} Be7 {[%emt 0:00:02]} 10. Qd2 {[%emt 0:00:04]} O-O {[%emt 0:00:05]} 11. a3 {[%emt 0:00:04]} Rc8 {[%emt 0:00:02]} 12. Rac1 {[%emt 0:00:13]} Na5 {[%emt 0:00:02]} 13. Ne5 {[%emt 0:00:13]} Bxe2 {[%emt 0:00:12]} 14. Nxe2 {[%emt 0:00:10]} Nc4 {[%emt 0:00:18]} 15. Nxc4 {[%emt 0:00:09]} Rxc4 {[%emt 0:00:01]} 16. c3 {[%emt 0:00:02]} Qc7 {[%emt 0:00:28]} 17. Qd3 {[%emt 0:00:03]} b5 {[%emt 0:00:10]} 18. Ng3 {[%emt 0:00:10]} a5 {[%emt 0:00:12]} 19. Qe2 {[%emt 0:00:21]} Rc8 {[%emt 0:00:08]} 20. Qf3 {[%emt 0:00:24]} Qd7 {[%emt 0:00:26]} 21. Nh5 {[%emt 0:00:17]} Nxh5 {[%emt 0:00:06]} 22. Qxh5 {[%emt 0:00:03]} g6 {[%emt 0:00:03]} 23. Qh6 {[%emt 0:00:17]} Bf8 {[%emt 0:00:01]} 24. Qg5 {[%emt 0:00:04]} b4 {[%emt 0:00:22]} 25. axb4 {[%emt 0:00:07]} axb4 {[%emt 0:00:00]} 26. Bf4 {[%emt 0:00:15]} bxc3 {[%emt 0:00:14]} 27. bxc3 {[%emt 0:00:11]} Rxc3 {[%emt 0:00:04]} 28. Be5 {[%emt 0:00:12]} Bg7 {[%emt 0:00:13]} 0-1

[Event "11th LCC Super Blitz 2019"]
[Site "London"]
[Date "2019.12.08"]
[Round "2.15"]
[White "Patel, Zain"]
[Black "Kirupakaran, Vishnu"]
[Result "1-0"]
[ECO "B92"]
[WhiteElo "1253"]
[BlackElo "1871"]
[Annotator "NA"]
[PlyCount "67"]
[EventDate "2019.12.08"]
[EventType "swiss"]
[EventCountry "ENG"]
[SourceTitle "playchess.com"]
[Source "ChessBase"]
[SourceQuality "1"]
[TimeControl "180+2"]

1. e4 {[%emt 0:00:00]} c5 {[%emt 0:00:00]} 2. Nf3 {[%emt 0:00:03]} d6 {[%emt 0:00:00]} 3. d4 {[%emt 0:00:02]} cxd4 {[%emt 0:00:01]} 4. Nxd4 {[%emt 0:00:02]} Nf6 {[%emt 0:00:02]} 5. Nc3 {[%emt 0:00:01]} a6 {[%emt 0:00:01]} 6. Be3 {[%emt 0:00:02]} e5 {[%emt 0:00:03]} 7. Nb3 {[%emt 0:00:02]} Be7 {[%emt 0:00:02]} 8. f3 {[%emt 0:00:02]} Be6 {[%emt 0:00:03]} 9. Qd2 {[%emt 0:00:02]} O-O {[%emt 0:00:34]} 10. O-O-O {[%emt 0:00:04]} Nbd7 {[%emt 0:00:02]} 11. Be2 {[%emt 0:00:02]} b5 {[%emt 0:00:02]} 12. a3 {[%emt 0:00:01]} Rc8 {[%emt 0:00:25]} 13. Kb1 {[%emt 0:00:02]} Nb6 {[%emt 0:00:10]} 14. h4 {[%emt 0:00:06]} Nc4 {[%emt 0:00:02]} 15. Bxc4 {[%emt 0:00:02]} Bxc4 {[%emt 0:00:03]} 16. h5 {[%emt 0:00:03]} a5 {[%emt 0:00:08]} 17. g4 {[%emt 0:00:15]} Ra8 {[%emt 0:01:36]} 18. g5 {[%emt 0:00:06]} Nd7 {[%emt 0:00:11]} 19. g6 {[%emt 0:00:03]} b4 {[%emt 0:00:03]} 20. Nd5 {[%emt 0:00:20]} Bxb3 {[%emt 0:00:08]} 21. cxb3 {[%emt 0:00:14]} bxa3 {[%emt 0:00:03]} 22. gxh7+ {[%emt 0:00:04]} Kh8 {[%emt 0:00:01]} 23. Rhg1 {[%emt 0:00:08]} Nc5 {[%emt 0:00:03]} 24. h6 {[%emt 0:00:14]} g6 {[%emt 0:00:01]} 25. Bxc5 {[%emt 0:00:05]} dxc5 {[%emt 0:00:01]} 26. Nxe7 {[%emt 0:00:10]} Qxe7 {[%emt 0:00:01]} 27. bxa3 {[%emt 0:00:12]} Rfb8 {[%emt 0:00:01]} 28. Kb2 {[%emt 0:00:14]} Qb7 {[%emt 0:00:02]} 29. Qc3 {[%emt 0:00:16]} Qc7 {[%emt 0:00:05]} 30. f4 {[%emt 0:00:05]} Kxh7 {[%emt 0:00:01]} 31. fxe5 {[%emt 0:00:03]} a4 {[%emt 0:00:01]} 32. b4 {[%emt 0:00:17]} Qe7 {[%emt 0:00:04]} 33. e6 {[%emt 0:00:06]} cxb4 {[%emt 0:00:02]} 34. Qg7# {[%emt 0:00:01]} 1-0

[Event "11th LCC Super Blitz 2019"]
[Site "London"]
[Date "2019.12.08"]
[Round "3.1"]
[White "Howell, David Wl"]
[Black "Beinoras, Mindaugas"]
[Result "1-0"]
[ECO "A28"]
[WhiteElo "2650"]
[BlackElo "2401"]
[Annotator "ChessBase"]
[PlyCount "85"]
[EventDate "2019.12.08"]
[EventType "swiss"]
[EventCountry "ENG"]
[SourceTitle "playchess.com"]
[Source "ChessBase"]
[SourceQuality "1"]
[TimeControl "180+2"]

1. c4 {[%emt 0:00:02]} e5 {[%emt 0:00:01]} 2. Nc3 {[%emt 0:00:02]} Nf6 {[%emt 0:00:01]} 3. Nf3 {[%emt 0:00:01]} Nc6 {[%emt 0:00:02]} 4. e3 {[%emt 0:00:02]} Bb4 {[%emt 0:00:03]} 5. Qc2 {[%emt 0:00:02]} O-O {[%emt 0:00:04]} 6. Nd5 {[%emt 0:00:01]} a5 {[%emt 0:00:03]} 7. a3 {[%emt 0:00:09]} Bc5 {[%emt 0:00:13]} 8. Ng5 {[%emt 0:00:10]} g6 {[%emt 0:00:07]} 9. h4 {[%emt 0:00:01]} Be7 {[%emt 0:00:12]} 10. b3 {[%emt 0:00:32]} d6 {[%emt 0:00:02]} 11. Nxe7+ {[%emt 0:00:08]} Qxe7 {[%emt 0:00:05]} 12. Bb2 {[%emt 0:00:01]} Bf5 {[%emt 0:00:07]} 13. d3 {[%emt 0:00:04]} h6 {[%emt 0:00:14]} 14. Nf3 {[%emt 0:00:20]} Bg4 {[%emt 0:00:12]} 15. Nd2 {[%emt 0:00:04]} d5 {[%emt 0:00:10]} 16. cxd5 {[%emt 0:00:11]} Nxd5 {[%emt 0:00:02]} 17. Ne4 {[%emt 0:00:01]} Rad8 {[%emt 0:00:08]} 18. Qc5 {[%emt 0:00:09]} Qe6 {[%emt 0:00:11]} 19. Rc1 {[%emt 0:00:02]} f5 {[%emt 0:00:06]} 20. Nd2 {[%emt 0:00:11]} Nb6 {[%emt 0:00:09]} 21. Qc3 {[%emt 0:00:13]} Kh7 {[%emt 0:00:07]} 22. f3 {[%emt 0:00:16]} Bh5 {[%emt 0:00:03]} 23. Nc4 {[%emt 0:00:10]} Nd5 {[%emt 0:00:12]} 24. Qd2 {[%emt 0:00:01]} e4 {[%emt 0:00:02]} 25. Kf2 {[%emt 0:00:11]} f4 {[%emt 0:00:17]} 26. dxe4 {[%emt 0:00:02]} Qxe4 {[%emt 0:00:20]} 27. fxe4 {[%emt 0:00:14]} fxe3+ {[%emt 0:00:01]} 28. Kg1 {[%emt 0:00:00]} exd2 {[%emt 0:00:02]} 29. Nxd2 {[%emt 0:00:01]} Nf4 {[%emt 0:00:08]} 30. Bc3 {[%emt 0:00:11]} Nd3 {[%emt 0:00:10]} 31. Bxd3 {[%emt 0:00:10]} Rxd3 {[%emt 0:00:01]} 32. Rh3 {[%emt 0:00:01]} Rxh3 {[%emt 0:00:11]} 33. gxh3 {[%emt 0:00:01]} Be2 {[%emt 0:00:05]} 34. Kg2 {[%emt 0:00:02]} Bd3 {[%emt 0:00:03]} 35. Kg3 {[%emt 0:00:01]} h5 {[%emt 0:00:03]} 36. Nf3 {[%emt 0:00:02]} Kh6 {[%emt 0:00:06]} 37. Ng5 {[%emt 0:00:02]} Re8 {[%emt 0:00:06]} 38. Rd1 {[%emt 0:00:05]} Bc2 {[%emt 0:00:03]} 39. Rd2 {[%emt 0:00:09]} Bxb3 {[%emt 0:00:01]} 40. Bf6 {[%emt 0:00:01]} Bg8 {[%emt 0:00:03]} 41. Kf4 {[%emt 0:00:02]} Na7 {[%emt 0:00:03]} 42. Rd7 {[%emt 0:00:01]} Nb5 {[%emt 0:00:01]} 43. Bg7# 1-0

[Event "11th LCC Super Blitz 2019"]
[Site "London"]
[Date "2019.12.08"]
[Round "3.2"]
[White "Rowson, Jonathan"]
[Black "Stepanyan, Henrik"]
[Result "1/2-1/2"]
[ECO "D00"]
[WhiteElo "2561"]
[BlackElo "2193"]
[Annotator "ChessBase"]
[PlyCount "75"]
[EventDate "2019.12.08"]
[EventType "swiss"]
[EventCountry "ENG"]
[SourceTitle "playchess.com"]
[Source "ChessBase"]
[SourceQuality "1"]
[TimeControl "180+2"]

1. d4 {[%emt 0:00:00]} d5 {[%emt 0:00:00]} 2. Bf4 {[%emt 0:00:03]} Nf6 {[%emt 0:00:00]} 3. e3 {[%emt 0:00:01]} c5 {[%emt 0:00:04]} 4. c3 {[%emt 0:00:00]} Nc6 {[%emt 0:00:02]} 5. Nd2 Qb6 {[%emt 0:00:09]} 6. Qb3 {[%emt 0:00:06]} c4 {[%emt 0:00:01]} 7. Qc2 {[%emt 0:00:02]} g6 {[%emt 0:00:01]} 8. b3 {[%emt 0:00:08]} Bf5 {[%emt 0:00:05]} 9. Qb2 cxb3 {[%emt 0:00:15]} 10. axb3 {[%emt 0:00:02]} Bg7 {[%emt 0:00:00]} 11. Ngf3 {[%emt 0:00:02]} O-O {[%emt 0:00:07]} 12. Be2 {[%emt 0:00:05]} Rfc8 {[%emt 0:00:04]} 13. O-O {[%emt 0:00:03]} Ne4 {[%emt 0:00:02]} 14. Nxe4 {[%emt 0:00:23]} Bxe4 {[%emt 0:00:02]} 15. Bg3 {[%emt 0:00:06]} a6 {[%emt 0:00:20]} 16. Rfc1 {[%emt 0:00:02]} Qd8 {[%emt 0:00:15]} 17. b4 {[%emt 0:00:22]} Bxf3 {[%emt 0:00:11]} 18. Bxf3 {[%emt 0:00:01]} e5 {[%emt 0:00:01]} 19. b5 {[%emt 0:00:05]} axb5 {[%emt 0:00:07]} 20. Qxb5 {[%emt 0:00:01]} e4 {[%emt 0:00:12]} 21. Bg4 {[%emt 0:00:06]} f5 {[%emt 0:00:15]} 22. Bd1 Na5 {[%emt 0:00:01]} 23. h4 {[%emt 0:00:28]} b6 {[%emt 0:00:03]} 24. Bb3 {[%emt 0:00:16]} Nxb3 {[%emt 0:00:10]} 25. Qxb3 {[%emt 0:00:01]} Bf8 {[%emt 0:00:30]} 26. Rxa8 {[%emt 0:00:12]} Rxa8 {[%emt 0:00:01]} 27. Bc7 {[%emt 0:00:31]} Qd7 {[%emt 0:00:10]} 28. Qxb6 {[%emt 0:00:01]} Rc8 {[%emt 0:00:06]} 29. Be5 {[%emt 0:00:02]} Qc6 {[%emt 0:00:10]} 30. Qxc6 {[%emt 0:00:10]} Rxc6 {[%emt 0:00:00]} 31. Kf1 {[%emt 0:00:13]} Bb4 {[%emt 0:00:12]} 32. Rb1 {[%emt 0:00:05]} Bxc3 {[%emt 0:00:01]} 33. Rc1 {[%emt 0:00:01]} Kf7 {[%emt 0:00:07]} 34. f3 {[%emt 0:00:09]} Ke6 {[%emt 0:00:01]} 35. Ke2 {[%emt 0:00:03]} Kd7 {[%emt 0:00:01]} 36. fxe4 {[%emt 0:00:02]} fxe4 {[%emt 0:00:00]} 37. g4 {[%emt 0:00:01]} Ba5 {[%emt 0:00:05]} 38. Rxc6 {[%emt 0:00:06]} 1/2-1/2

[Event "11th LCC Super Blitz 2019"]
[Site "London"]
[Date "2019.12.08"]
[Round "3.2"]
[White "Balaji, Aaravamudhan"]
[Black "Aravindh, Chithambaram Vr"]
[Result "0-1"]
[ECO "D26"]
[WhiteElo "2120"]
[BlackElo "2560"]
[Annotator "ChessBase"]
[PlyCount "57"]
[EventDate "2019.12.08"]
[EventType "swiss"]
[EventCountry "ENG"]
[SourceTitle "playchess.com"]
[Source "ChessBase"]
[SourceQuality "1"]
[TimeControl "180+2"]

1. d4 {[%emt 0:00:00]} Nf6 {[%emt 0:00:00]} 2. c4 {[%emt 0:00:00]} e6 {[%emt 0:00:01]} 3. Nc3 {[%emt 0:00:01]} d5 {[%emt 0:00:01]} 4. Nf3 {[%emt 0:00:04]} a6 {[%emt 0:00:02]} 5. e3 {[%emt 0:00:08]} b6 {[%emt 0:00:07]} 6. Be2 {[%emt 0:00:04]} dxc4 {[%emt 0:00:01]} 7. Bxc4 {[%emt 0:00:01]} b5 {[%emt 0:00:02]} 8. Bd3 {[%emt 0:00:06]} Bb7 {[%emt 0:00:01]} 9. O-O {[%emt 0:00:03]} Nbd7 {[%emt 0:00:05]} 10. Qc2 {[%emt 0:00:12]} c5 {[%emt 0:00:03]} 11. b3 {[%emt 0:00:04]} Rc8 {[%emt 0:00:06]} 12. a3 {[%emt 0:00:57]} Bxf3 13. gxf3 {[%emt 0:00:02]} cxd4 {[%emt 0:00:28]} 14. exd4 {[%emt 0:00:01]} Nd5 {[%emt 0:00:02]} 15. Bd2 {[%emt 0:00:18]} Bd6 {[%emt 0:00:07]} 16. f4 {[%emt 0:01:01]} Bxf4 {[%emt 0:00:13]} 17. Bxf4 {[%emt 0:00:06]} Nxf4 {[%emt 0:00:12]} 18. Be4 {[%emt 0:00:06]} Rxc3 {[%emt 0:00:03]} 19. Qd2 {[%emt 0:00:04]} Qg5+ {[%emt 0:00:17]} 20. Kh1 {[%emt 0:00:01]} Rh3 {[%emt 0:00:02]} 21. Rac1 {[%emt 0:00:18]} O-O {[%emt 0:00:07]} 22. f3 {[%emt 0:00:02]} Nf6 {[%emt 0:00:18]} 23. Rg1 {[%emt 0:00:02]} Qh6 {[%emt 0:00:03]} 24. Bb7 {[%emt 0:00:04]} N6d5 {[%emt 0:00:07]} 25. Bxd5 {[%emt 0:00:01]} Nxd5 {[%emt 0:00:02]} 26. Qxh6 {[%emt 0:00:02]} Rxh6 {[%emt 0:00:01]} 27. Rc6 {[%emt 0:00:02]} Rh4 {[%emt 0:00:07]} 28. Rd1 {[%emt 0:00:02]} Ra8 {[%emt 0:00:04]} 29. Rdc1 {[%emt 0:00:04]} 0-1

[Event "11th LCC Super Blitz 2019"]
[Site "London"]
[Date "2019.12.08"]
[Round "3.2"]
[White "Rishi, Thariani"]
[Black "Pert, Nicholas"]
[Result "0-1"]
[ECO "B22"]
[WhiteElo "2008"]
[BlackElo "2560"]
[Annotator "ChessBase"]
[PlyCount "52"]
[EventDate "2019.12.08"]
[EventType "swiss"]
[EventCountry "ENG"]
[SourceTitle "playchess.com"]
[Source "ChessBase"]
[SourceQuality "1"]
[TimeControl "180+2"]

1. e4 {[%emt 0:00:02]} c5 {[%emt 0:00:00]} 2. c3 {[%emt 0:00:03]} Nf6 {[%emt 0:00:01]} 3. e5 {[%emt 0:00:01]} Nd5 {[%emt 0:00:01]} 4. d4 {[%emt 0:00:00]} cxd4 {[%emt 0:00:01]} 5. Nf3 {[%emt 0:00:01]} Nc6 {[%emt 0:00:01]} 6. cxd4 {[%emt 0:00:01]} d6 {[%emt 0:00:02]} 7. Bc4 {[%emt 0:00:05]} dxe5 {[%emt 0:00:03]} 8. dxe5 {[%emt 0:00:03]} Ndb4 {[%emt 0:00:02]} 9. Qb3 {[%emt 0:00:41]} e6 {[%emt 0:00:01]} 10. O-O {[%emt 0:00:04]} Bd7 {[%emt 0:00:02]} 11. Bb5 {[%emt 0:00:30]} a6 {[%emt 0:00:23]} 12. Bxc6 {[%emt 0:00:02]} Bxc6 {[%emt 0:00:01]} 13. a3 {[%emt 0:00:10]} Qd3 {[%emt 0:00:36]} 14. Qxd3 {[%emt 0:00:38]} Nxd3 {[%emt 0:00:01]} 15. Nd4 {[%emt 0:00:01]} Nxe5 {[%emt 0:00:09]} 16. Bf4 {[%emt 0:00:04]} Nd3 {[%emt 0:00:04]} 17. Be3 {[%emt 0:00:04]} Be7 {[%emt 0:00:15]} 18. b4 {[%emt 0:00:05]} O-O {[%emt 0:00:05]} 19. Rd1 {[%emt 0:00:04]} Ne5 {[%emt 0:00:10]} 20. Nd2 {[%emt 0:00:07]} Rac8 {[%emt 0:00:05]} 21. Rac1 {[%emt 0:00:03]} Bd5 {[%emt 0:00:03]} 22. N2b3 {[%emt 0:00:06]} Nc4 {[%emt 0:00:03]} 23. Ra1 {[%emt 0:00:25]} Nxe3 {[%emt 0:00:06]} 24. fxe3 {[%emt 0:00:01]} Rc3 {[%emt 0:00:00]} 25. Na5 {[%emt 0:00:02]} b6 {[%emt 0:00:03]} 26. Ne2 {[%emt 0:00:07]} Rxe3 {[%emt 0:00:06]} 0-1